{"text_format":"3","workbook":"xlsx","n_sheets":5,"sheets":["签章页","编制说明","消防检测","清单","按进场部分工程量"],"not_rendered":{"external_links":1},"read":"whole","date_system":"1900"}

{"sheet":"签章页","index":0,"n_rows":13,"n_cols":9,"rows_kept":13,"merged":[[0,0,0,1],[0,2,0,6],[0,7,0,8],[1,0,1,8],[2,0,2,8],[3,1,3,3],[3,4,3,7],[4,1,4,3],[4,4,4,7],[5,1,5,2],[5,3,5,4],[5,6,5,7],[6,1,6,2],[6,3,6,4],[6,6,6,7],[7,0,7,1],[7,3,7,4],[7,6,7,7],[8,1,8,2],[8,3,8,4],[8,6,8,7],[9,1,9,2],[9,3,9,4],[9,6,9,7],[10,1,10,2],[10,3,10,4],[10,6,10,7],[11,1,11,2],[11,3,11,4],[11,6,11,7],[12,1,12,2],[12,3,12,4],[12,6,12,7]]}
["",null,"广州工控大湾区现代高端装备研发生产基地项目(三期)设备基础预压工程",{"$nulls":4},"工程"]
[""]
["\n招  标  控  制  价"]
["","控制价（小写）：",null,null,{"$f":"清单!H5","v":{"v":0,"d":"0.00"}},{"$nulls":3},""]
["","       （大写）：",null,null,{"$f":"E4","v":0},{"$nulls":3},""]
["","",{"$nulls":3},"",null,null,""]
[null," 招 标 人：",{"$nulls":3}," 造价咨询人："]
[{"$nulls":3},"（单位盖章）",null,null,"（单位盖章）"]
["","法定代表人\n或其授权人：",null,"",null,"法定代表人\n或其授权人：","",null,""]
["","",null,"（签字或盖章）",null,"","（签字或盖章）",null,""]
["","编 制 人：",null,"",null," 复 核 人：","",null,""]
["","",null,"（造价人员签字盖专用章）",null,"","（造价人员签字盖专用章）",null,""]
["","编制时间： ",null,"",null,"复核时间：","",null,""]

{"sheet":"编制说明","index":1,"n_rows":4,"n_cols":3,"rows_kept":4,"merged":[[1,0,1,1],[2,0,2,2]]}
[null,"总  说  明"]
["工程名称：广州工控大湾区现代高端装备研发生产基地项目(三期)设备基础预压工程",null,"第 1 页  共 1 页"]
["一、 项目概况：\n1、项目名称：广州工控大湾区现代高端装备研发生产基地项目(三期)设备基础预压工程\n2、建设单位：广州工控智能装备产业有限公司\n3、项目地址：广州市南沙区大岗镇谭新公路362号\n4、项目范围：设备基础的预压工程等。\n二、 编制依据：\n1、预压重量根据设备总重的倍数来计取；\n2、综合单价包含进出场运输费、周转材租赁费、过程中吊装转运费，综合考虑因场地限制无法堆放转用材料等因素，包括按施工工艺、验收标准完成的相关内容，包括完成项目清单所需的一切相关工作，包括人工费、材料费、机械费、管理费、利润、措施费、预算包干费、总包配合费、税金以及项目所测算的风险金等全部费用。\n三、 招标范围：\n   招标范围包括： \n   广州工控大湾区现代高端装备研发生产基地项目(三期)设备基础预压工程。"]
[null,null,"表-01"]

{"sheet":"消防检测","index":2,"n_rows":249,"n_cols":8,"rows_kept":249,"hidden":true,"merged":[[0,0,0,7],[2,1,35,1],[2,2,19,2],[20,2,21,2],[23,2,27,2],[29,2,34,2],[36,1,69,1],[36,2,53,2],[54,2,55,2],[57,2,61,2],[63,2,68,2],[70,1,103,1],[70,2,87,2],[88,2,89,2],[91,2,95,2],[97,2,102,2],[104,1,137,1],[104,2,121,2],[122,2,123,2],[125,2,129,2],[131,2,136,2],[138,1,171,1],[138,2,155,2],[156,2,157,2],[159,2,163,2],[165,2,170,2],[172,1,213,1],[172,2,189,2],[190,2,191,2],[193,2,197,2],[199,2,204,2],[205,2,212,2],[214,1,247,1],[214,2,231,2],[232,2,233,2],[235,2,239,2],[241,2,246,2],[248,0,248,6]]}
["广柴高端装备二期项目 消防设施检测报价"]
["序号","区域","消防设施系统","检测项目","单位","检测数量","单价","合价"]
[1,"联合厂房","自动报警系统","火灾报警控制设备（安装、配线、供电、自检、记忆、显示、打印、故障报警、消音、复位、主备电源转换、火警优先）","套",0,1000,{"$f":"F3*G3","v":0}]
[2,null,null,"CRT（UPS供电、显示检查每一保护区平面图的设置）","套",0,800,{"$f":"F4*G4","v":0}]
[3,null,null,"区域显示器或重复显示器（接线、报警、显示、消音、复位、二次报警功能）","套",10,300,3000]
[4,null,null,"联动控制器（自动、手动控制功能、反馈信号、主备电自动切换、功能标志）","台",0,600,0]
[5,null,null,"联动设备点","区",12,50,600]
[6,null,null,"手动报警按钮（警铃、报警、反馈及联动）","只",30,20,600]
[7,null,null,"消防广播联动功能（背景音乐与消防广播的转切功能、各楼层广播音响）","区域",38,30,1140]
[8,null,null,"电话插孔与电话机配备","只",31,15,465]
[9,null,null,"电梯手动、自动迫降","台",2,80,160]
[10,null,null,"布线、穿管（线、管、盒配置与规范，明敷管防火处理）","区域",12,150,1800]
[11,null,null,"火灾探测器（安装、分布、离梁、墙风口距离、报警功能、编码、信号反馈","套",160,18,2880]
[12,null,null,"备用发电机","套",0,300,0]
[13,null,null,"消防供电与末端配电箱切换","处",9,50,450]
[14,null,null,"应急灯、疏散指示标志（安装、配置、指向、掉电保持时间）","套",187,8,1496]
[15,null,null,"漏电火灾报警监控主机","套",0,1200,0]
[16,null,null,"漏电监控终端显示CRT","套",0,720,0]
[17,null,null,"漏电监控探测器","套",0,80,0]
[18,null,null,"漏电监控现场布线检查测试","套",3,140,420]
[19,null,"防火门、防火卷帘","防火卷帘（手动、自动控制、信号反馈、关闭速度及时间、安装质量）","㎡",22,19,418]
[20,null,null,"防火门","㎡",254,10,2540]
[21,null,"水喷淋灭火系统","水喷淋系统（喷头、管网、水流指示、闸阀、湿式报警阀、放水、压力、泵房、水泵、控制箱、联动）","㎡",67650,0.95,64267.5]
[22,null,"消火栓系统","消火栓泵房与泵组（泵安装、规格、手动、自动、远动、启动、反馈、主备切换、配管、控制箱功能）","套",0,1200,0]
[23,null,null,"消火栓（安装尺寸、水枪、水带、卷盘配置、临高供水者，设直接启破玻按钮）","套",182,50,9100]
[24,null,null,"消火栓按钮（报警、信号反馈、启泵）","套",182,20,3640]
[25,null,null,"消火栓充实水柱及压力（最不利点压力和充实水柱、栓口静水压、出水压）","每支水枪",3,300,900]
[26,null,null,"水泵接合器（安装位置、标志、数量与水池、室外消火栓、门、窗洞、地面距离、试水开通功能）","套",11,100,1100]
[27,null,"气体灭火系统","气体灭火系统","㎡",0,15,0]
[28,null,"防排烟系统","正压送风机与控制设备（专用消防供电、末级自动切换、火灾时自动启动、手动启动、信号反馈、安装容量）","套",2,200,400]
[29,null,null,"正压送风口与送风阀（梯间2-3层，前室每层设送风口、阀一个，手动、自动、开启、手动复位、信号反馈、安装位置）","套",3,50,150]
[30,null,null,"正压送风风速与余压测试（送风口风速≤7m/s、前室、合前室余压20-30Pa、楼梯间余压40-50 Pa）","处",0,50,0]
[31,null,null,"排烟风机与控制设备（配电与末端切换、安装位置、控制箱手动、自动启动、信号反馈）","套",4,200,800]
[32,null,null,"排烟口设置与功能（设置位置及其与安全出口、排烟区内最远点距离，平时关闭、设手动、自动开启装置，开启、复位、反馈正常、风速≤10m/s）","套",19,20,380]
[33,null,null,"排烟及通风空调防火阀设置与功能（设置部位、平时开启、手动、自动关闭、信号反馈、手动复位）","套",0,50,0]
[34,null,"建筑灭火器","手提式灭火器","具",338,30,10140]
[35,"开闭所","自动报警系统","火灾报警控制设备（安装、配线、供电、自检、记忆、显示、打印、故障报警、消音、复位、主备电源转换、火警优先）","套",0,1000,0]
[36,null,null,"CRT（UPS供电、显示检查每一保护区平面图的设置）","套",0,800,0]
[37,null,null,"区域显示器或重复显示器（接线、报警、显示、消音、复位、二次报警功能）","套",0,300,0]
[38,null,null,"联动控制器（自动、手动控制功能、反馈信号、主备电自动切换、功能标志）","台",0,600,0]
[39,null,null,"联动设备点","区",0,50,0]
[40,null,null,"手动报警按钮（警铃、报警、反馈及联动）","只",0,20,0]
[41,null,null,"消防广播联动功能（背景音乐与消防广播的转切功能、各楼层广播音响）","区域",0,30,0]
[42,null,null,"电话插孔与电话机配备","只",0,15,0]
[43,null,null,"电梯手动、自动迫降","台",0,80,0]
[44,null,null,"布线、穿管（线、管、盒配置与规范，明敷管防火处理）","区域",1,150,150]
[45,null,null,"火灾探测器（安装、分布、离梁、墙风口距离、报警功能、编码、信号反馈","套",0,18,0]
[46,null,null,"备用发电机","套",0,300,0]
[47,null,null,"消防供电与末端配电箱切换","处",1,50,50]
[48,null,null,"应急灯、疏散指示标志（安装、配置、指向、掉电保持时间）","套",33,8,264]
[49,null,null,"漏电火灾报警监控主机","套",0,1200,0]
[50,null,null,"漏电监控终端显示CRT","套",0,720,0]
[51,null,null,"漏电监控探测器","套",27,80,2160]
[52,null,null,"漏电监控现场布线检查测试","套",5,140,700]
[53,null,"防火门、防火卷帘","防火卷帘（手动、自动控制、信号反馈、关闭速度及时间、安装质量）","㎡",0,19,0]
[54,null,null,"防火门","㎡",33,10,330]
[55,null,"水喷淋灭火系统","水喷淋系统（喷头、管网、水流指示、闸阀、湿式报警阀、放水、压力、泵房、水泵、控制箱、联动）","㎡",0,0.95,0]
[56,null,"消火栓系统","消火栓泵房与泵组（泵安装、规格、手动、自动、远动、启动、反馈、主备切换、配管、控制箱功能）","套",0,1200,0]
[57,null,null,"消火栓（安装尺寸、水枪、水带、卷盘配置、临高供水者，设直接启破玻按钮）","套",2,50,100]
[58,null,null,"消火栓按钮（报警、信号反馈、启泵）","套",2,20,40]
[59,null,null,"消火栓充实水柱及压力（最不利点压力和充实水柱、栓口静水压、出水压）","每支水枪",1,300,300]
[60,null,null,"水泵接合器（安装位置、标志、数量与水池、室外消火栓、门、窗洞、地面距离、试水开通功能）","套",0,100,0]
[61,null,"气体灭火系统","气体灭火系统","㎡",0,15,0]
[62,null,"防排烟系统","正压送风机与控制设备（专用消防供电、末级自动切换、火灾时自动启动、手动启动、信号反馈、安装容量）","套",0,200,0]
[63,null,null,"正压送风口与送风阀（梯间2-3层，前室每层设送风口、阀一个，手动、自动、开启、手动复位、信号反馈、安装位置）","套",0,50,0]
[64,null,null,"正压送风风速与余压测试（送风口风速≤7m/s、前室、合前室余压20-30Pa、楼梯间余压40-50 Pa）","处",0,50,0]
[65,null,null,"排烟风机与控制设备（配电与末端切换、安装位置、控制箱手动、自动启动、信号反馈）","套",4,200,800]
[66,null,null,"排烟口设置与功能（设置位置及其与安全出口、排烟区内最远点距离，平时关闭、设手动、自动开启装置，开启、复位、反馈正常、风速≤10m/s）","套",4,20,{"$f":"F68*G68","v":80}]
[67,null,null,"排烟及通风空调防火阀设置与功能（设置部位、平时开启、手动、自动关闭、信号反馈、手动复位）","套",0,50,0]
[68,null,"建筑灭火器","手提式灭火器","具",10,30,300]
[69,"水泵房","自动报警系统","火灾报警控制设备（安装、配线、供电、自检、记忆、显示、打印、故障报警、消音、复位、主备电源转换、火警优先）","套",0,1000,0]
[70,null,null,"CRT（UPS供电、显示检查每一保护区平面图的设置）","套",0,800,0]
[71,null,null,"区域显示器或重复显示器（接线、报警、显示、消音、复位、二次报警功能）","套",0,300,0]
[72,null,null,"联动控制器（自动、手动控制功能、反馈信号、主备电自动切换、功能标志）","台",0,600,0]
[73,null,null,"联动设备点","区",0,50,0]
[74,null,null,"手动报警按钮（警铃、报警、反馈及联动）","只",0,20,0]
[75,null,null,"消防广播联动功能（背景音乐与消防广播的转切功能、各楼层广播音响）","区域",0,30,0]
[76,null,null,"电话插孔与电话机配备","只",0,15,0]
[77,null,null,"电梯手动、自动迫降","台",0,80,0]
[78,null,null,"布线、穿管（线、管、盒配置与规范，明敷管防火处理）","区域",2,150,300]
[79,null,null,"火灾探测器（安装、分布、离梁、墙风口距离、报警功能、编码、信号反馈","套",0,18,0]
[80,null,null,"备用发电机","套",0,300,0]
[81,null,null,"消防供电与末端配电箱切换","处",1,50,50]
[82,null,null,"应急灯、疏散指示标志（安装、配置、指向、掉电保持时间）","套",18,8,144]
[83,null,null,"漏电火灾报警监控主机","套",0,1200,0]
[84,null,null,"漏电监控终端显示CRT","套",0,720,0]
[85,null,null,"漏电监控探测器","套",17,80,1360]
[86,null,null,"漏电监控现场布线检查测试","套",1,140,140]
[87,null,"防火门、防火卷帘","防火卷帘（手动、自动控制、信号反馈、关闭速度及时间、安装质量）","㎡",0,19,0]
[88,null,null,"防火门","㎡",13,10,130]
[89,null,"水喷淋灭火系统","水喷淋系统（喷头、管网、水流指示、闸阀、湿式报警阀、放水、压力、泵房、水泵、控制箱、联动）","㎡",0,0.95,0]
[90,null,"消火栓系统","消火栓泵房与泵组（泵安装、规格、手动、自动、远动、启动、反馈、主备切换、配管、控制箱功能）","套",0,1200,0]
[91,null,null,"消火栓（安装尺寸、水枪、水带、卷盘配置、临高供水者，设直接启破玻按钮）","套",8,50,400]
[92,null,null,"消火栓按钮（报警、信号反馈、启泵）","套",8,20,160]
[93,null,null,"消火栓充实水柱及压力（最不利点压力和充实水柱、栓口静水压、出水压）","每支水枪",1,300,300]
[94,null,null,"水泵接合器（安装位置、标志、数量与水池、室外消火栓、门、窗洞、地面距离、试水开通功能）","套",0,100,0]
[95,null,"气体灭火系统","气体灭火系统","㎡",0,15,0]
[96,null,"防排烟系统","正压送风机与控制设备（专用消防供电、末级自动切换、火灾时自动启动、手动启动、信号反馈、安装容量）","套",0,200,0]
[97,null,null,"正压送风口与送风阀（梯间2-3层，前室每层设送风口、阀一个，手动、自动、开启、手动复位、信号反馈、安装位置）","套",0,50,0]
[98,null,null,"正压送风风速与余压测试（送风口风速≤7m/s、前室、合前室余压20-30Pa、楼梯间余压40-50 Pa）","处",0,50,0]
[99,null,null,"排烟风机与控制设备（配电与末端切换、安装位置、控制箱手动、自动启动、信号反馈）","套",0,200,0]
[100,null,null,"排烟口设置与功能（设置位置及其与安全出口、排烟区内最远点距离，平时关闭、设手动、自动开启装置，开启、复位、反馈正常、风速≤10m/s）","套",0,20,0]
[101,null,null,"排烟及通风空调防火阀设置与功能（设置部位、平时开启、手动、自动关闭、信号反馈、手动复位）","套",0,50,0]
[102,null,"建筑灭火器","手提式灭火器","具",10,30,300]
[103,"油化库","自动报警系统","火灾报警控制设备（安装、配线、供电、自检、记忆、显示、打印、故障报警、消音、复位、主备电源转换、火警优先）","套",1,1000,1000]
[104,null,null,"CRT（UPS供电、显示检查每一保护区平面图的设置）","套",0,800,0]
[105,null,null,"区域显示器或重复显示器（接线、报警、显示、消音、复位、二次报警功能）","套",0,300,0]
[106,null,null,"联动控制器（自动、手动控制功能、反馈信号、主备电自动切换、功能标志）","台",1,600,600]
[107,null,null,"联动设备点","区",1,50,50]
[108,null,null,"手动报警按钮（警铃、报警、反馈及联动）","只",0,20,0]
[109,null,null,"消防广播联动功能（背景音乐与消防广播的转切功能、各楼层广播音响）","区域",1,30,30]
[110,null,null,"电话插孔与电话机配备","只",0,15,0]
[111,null,null,"电梯手动、自动迫降","台",0,80,0]
[112,null,null,"布线、穿管（线、管、盒配置与规范，明敷管防火处理）","区域",1,150,150]
[113,null,null,"火灾探测器（安装、分布、离梁、墙风口距离、报警功能、编码、信号反馈","套",3,18,54]
[114,null,null,"备用发电机","套",0,300,0]
[115,null,null,"消防供电与末端配电箱切换","处",0,50,0]
[116,null,null,"应急灯、疏散指示标志（安装、配置、指向、掉电保持时间）","套",0,8,0]
[117,null,null,"漏电火灾报警监控主机","套",0,1200,0]
[118,null,null,"漏电监控终端显示CRT","套",0,720,0]
[119,null,null,"漏电监控探测器","套",8,80,640]
[120,null,null,"漏电监控现场布线检查测试","套",1,140,140]
[121,null,"防火门、防火卷帘","防火卷帘（手动、自动控制、信号反馈、关闭速度及时间、安装质量）","㎡",0,19,0]
[122,null,null,"防火门","㎡",33,10,330]
[123,null,"水喷淋灭火系统","水喷淋系统（喷头、管网、水流指示、闸阀、湿式报警阀、放水、压力、泵房、水泵、控制箱、联动）","㎡",0,0.95,0]
[124,null,"消火栓系统","消火栓泵房与泵组（泵安装、规格、手动、自动、远动、启动、反馈、主备切换、配管、控制箱功能）","套",0,1200,0]
[125,null,null,"消火栓（安装尺寸、水枪、水带、卷盘配置、临高供水者，设直接启破玻按钮）","套",4,50,200]
[126,null,null,"消火栓按钮（报警、信号反馈、启泵）","套",4,20,80]
[127,null,null,"消火栓充实水柱及压力（最不利点压力和充实水柱、栓口静水压、出水压）","每支水枪",1,300,300]
[128,null,null,"水泵接合器（安装位置、标志、数量与水池、室外消火栓、门、窗洞、地面距离、试水开通功能）","套",1,100,100]
[129,null,"气体灭火系统","气体灭火系统","㎡",0,15,0]
[130,null,"防排烟系统","正压送风机与控制设备（专用消防供电、末级自动切换、火灾时自动启动、手动启动、信号反馈、安装容量）","套",0,200,{"$f":"F132*G132","v":0}]
[131,null,null,"正压送风口与送风阀（梯间2-3层，前室每层设送风口、阀一个，手动、自动、开启、手动复位、信号反馈、安装位置）","套",0,50,0]
[132,null,null,"正压送风风速与余压测试（送风口风速≤7m/s、前室、合前室余压20-30Pa、楼梯间余压40-50 Pa）","处",0,50,0]
[133,null,null,"排烟风机与控制设备（配电与末端切换、安装位置、控制箱手动、自动启动、信号反馈）","套",2,200,400]
[134,null,null,"排烟口设置与功能（设置位置及其与安全出口、排烟区内最远点距离，平时关闭、设手动、自动开启装置，开启、复位、反馈正常、风速≤10m/s）","套",0,20,0]
[135,null,null,"排烟及通风空调防火阀设置与功能（设置部位、平时开启、手动、自动关闭、信号反馈、手动复位）","套",0,50,0]
[136,null,"建筑灭火器","手提式灭火器","具",12,30,360]
[137,"固废站","自动报警系统","火灾报警控制设备（安装、配线、供电、自检、记忆、显示、打印、故障报警、消音、复位、主备电源转换、火警优先）","套",0,1000,0]
[138,null,null,"CRT（UPS供电、显示检查每一保护区平面图的设置）","套",0,800,0]
[139,null,null,"区域显示器或重复显示器（接线、报警、显示、消音、复位、二次报警功能）","套",0,300,0]
[140,null,null,"联动控制器（自动、手动控制功能、反馈信号、主备电自动切换、功能标志）","台",0,600,0]
[141,null,null,"联动设备点","区",0,50,0]
[142,null,null,"手动报警按钮（警铃、报警、反馈及联动）","只",0,20,0]
[143,null,null,"消防广播联动功能（背景音乐与消防广播的转切功能、各楼层广播音响）","区域",0,30,0]
[144,null,null,"电话插孔与电话机配备","只",0,15,0]
[145,null,null,"电梯手动、自动迫降","台",0,80,0]
[146,null,null,"布线、穿管（线、管、盒配置与规范，明敷管防火处理）","区域",0,150,0]
[147,null,null,"火灾探测器（安装、分布、离梁、墙风口距离、报警功能、编码、信号反馈","套",0,18,0]
[148,null,null,"备用发电机","套",0,300,0]
[149,null,null,"消防供电与末端配电箱切换","处",1,50,50]
[150,null,null,"应急灯、疏散指示标志（安装、配置、指向、掉电保持时间）","套",33,8,264]
[151,null,null,"漏电火灾报警监控主机","套",0,1200,0]
[152,null,null,"漏电监控终端显示CRT","套",0,720,0]
[153,null,null,"漏电监控探测器","套",8,80,640]
[154,null,null,"漏电监控现场布线检查测试","套",1,140,140]
[155,null,"防火门、防火卷帘","防火卷帘（手动、自动控制、信号反馈、关闭速度及时间、安装质量）","㎡",0,19,0]
[156,null,null,"防火门","㎡",33,10,330]
[157,null,"水喷淋灭火系统","水喷淋系统（喷头、管网、水流指示、闸阀、湿式报警阀、放水、压力、泵房、水泵、控制箱、联动）","㎡",0,0.95,0]
[158,null,"消火栓系统","消火栓泵房与泵组（泵安装、规格、手动、自动、远动、启动、反馈、主备切换、配管、控制箱功能）","套",0,1200,0]
[159,null,null,"消火栓（安装尺寸、水枪、水带、卷盘配置、临高供水者，设直接启破玻按钮）","套",0,50,0]
[160,null,null,"消火栓按钮（报警、信号反馈、启泵）","套",0,20,0]
[161,null,null,"消火栓充实水柱及压力（最不利点压力和充实水柱、栓口静水压、出水压）","每支水枪",0,300,0]
[162,null,null,"水泵接合器（安装位置、标志、数量与水池、室外消火栓、门、窗洞、地面距离、试水开通功能）","套",1,100,100]
[163,null,"气体灭火系统","气体灭火系统","㎡",0,15,0]
[164,null,"防排烟系统","正压送风机与控制设备（专用消防供电、末级自动切换、火灾时自动启动、手动启动、信号反馈、安装容量）","套",0,200,0]
[165,null,null,"正压送风口与送风阀（梯间2-3层，前室每层设送风口、阀一个，手动、自动、开启、手动复位、信号反馈、安装位置）","套",0,50,0]
[166,null,null,"正压送风风速与余压测试（送风口风速≤7m/s、前室、合前室余压20-30Pa、楼梯间余压40-50 Pa）","处",0,50,0]
[167,null,null,"排烟风机与控制设备（配电与末端切换、安装位置、控制箱手动、自动启动、信号反馈）","套",0,200,0]
[168,null,null,"排烟口设置与功能（设置位置及其与安全出口、排烟区内最远点距离，平时关闭、设手动、自动开启装置，开启、复位、反馈正常、风速≤10m/s）","套",0,20,0]
[169,null,null,"排烟及通风空调防火阀设置与功能（设置部位、平时开启、手动、自动关闭、信号反馈、手动复位）","套",0,50,0]
[170,null,"建筑灭火器","手提式灭火器","具",4,30,120]
[171,"供油站","自动报警系统","火灾报警控制设备（安装、配线、供电、自检、记忆、显示、打印、故障报警、消音、复位、主备电源转换、火警优先）","套",0,1000,0]
[172,null,null,"CRT（UPS供电、显示检查每一保护区平面图的设置）","套",0,800,0]
[173,null,null,"区域显示器或重复显示器（接线、报警、显示、消音、复位、二次报警功能）","套",0,300,0]
[174,null,null,"联动控制器（自动、手动控制功能、反馈信号、主备电自动切换、功能标志）","台",0,600,0]
[175,null,null,"联动设备点","区",0,50,0]
[176,null,null,"手动报警按钮（警铃、报警、反馈及联动）","只",0,20,0]
[177,null,null,"消防广播联动功能（背景音乐与消防广播的转切功能、各楼层广播音响）","区域",0,30,0]
[178,null,null,"电话插孔与电话机配备","只",0,15,0]
[179,null,null,"电梯手动、自动迫降","台",0,80,0]
[180,null,null,"布线、穿管（线、管、盒配置与规范，明敷管防火处理）","区域",0,150,0]
[181,null,null,"火灾探测器（安装、分布、离梁、墙风口距离、报警功能、编码、信号反馈","套",0,18,0]
[182,null,null,"备用发电机","套",0,300,0]
[183,null,null,"消防供电与末端配电箱切换","处",0,50,0]
[184,null,null,"应急灯、疏散指示标志（安装、配置、指向、掉电保持时间）","套",0,8,0]
[185,null,null,"漏电火灾报警监控主机","套",0,1200,0]
[186,null,null,"漏电监控终端显示CRT","套",0,720,0]
[187,null,null,"漏电监控探测器","套",4,80,320]
[188,null,null,"漏电监控现场布线检查测试","套",1,140,140]
[189,null,"防火门、防火卷帘","防火卷帘（手动、自动控制、信号反馈、关闭速度及时间、安装质量）","㎡",0,19,0]
[190,null,null,"防火门","㎡",0,10,0]
[191,null,"水喷淋灭火系统","水喷淋系统（喷头、管网、水流指示、闸阀、湿式报警阀、放水、压力、泵房、水泵、控制箱、联动）","㎡",0,0.95,0]
[192,null,"消火栓系统","消火栓泵房与泵组（泵安装、规格、手动、自动、远动、启动、反馈、主备切换、配管、控制箱功能）","套",0,1200,0]
[193,null,null,"消火栓（安装尺寸、水枪、水带、卷盘配置、临高供水者，设直接启破玻按钮）","套",0,50,0]
[194,null,null,"消火栓按钮（报警、信号反馈、启泵）","套",0,20,{"$f":"F196*G196","v":0}]
[195,null,null,"消火栓充实水柱及压力（最不利点压力和充实水柱、栓口静水压、出水压）","每支水枪",0,300,0]
[196,null,null,"水泵接合器（安装位置、标志、数量与水池、室外消火栓、门、窗洞、地面距离、试水开通功能）","套",1,100,100]
[197,null,"气体灭火系统","气体灭火系统","㎡",0,15,0]
[198,null,"防排烟系统","正压送风机与控制设备（专用消防供电、末级自动切换、火灾时自动启动、手动启动、信号反馈、安装容量）","套",0,200,0]
[199,null,null,"正压送风口与送风阀（梯间2-3层，前室每层设送风口、阀一个，手动、自动、开启、手动复位、信号反馈、安装位置）","套",0,50,0]
[200,null,null,"正压送风风速与余压测试（送风口风速≤7m/s、前室、合前室余压20-30Pa、楼梯间余压40-50 Pa）","处",0,50,0]
[201,null,null,"排烟风机与控制设备（配电与末端切换、安装位置、控制箱手动、自动启动、信号反馈）","套",2,200,400]
[202,null,null,"排烟口设置与功能（设置位置及其与安全出口、排烟区内最远点距离，平时关闭、设手动、自动开启装置，开启、复位、反馈正常、风速≤10m/s）","套",0,20,0]
[203,null,null,"排烟及通风空调防火阀设置与功能（设置部位、平时开启、手动、自动关闭、信号反馈、手动复位）","套",0,50,0]
[204,null,"泡沫灭火系统","混合器型号、安装功能","只",2,80,160]
[205,null,null,"泡沫发生器型号、安装、功能","只",2,80,160]
[206,null,null,"泡沫消火栓（设置、功能、组件）","只",0,60,0]
[207,null,null,"泡沫罐规格、安装","只",2,100,200]
[208,null,null,"泡沫（喷头设置、安装）","只",2,20,40]
[209,null,null,"电磁（动）阀安装、功能","只",0,30,0]
[210,null,null,"泵运转(启、停、控制、工作、故障显示）","台",0,150,0]
[211,null,null,"系统联动（密封、水压、手动、自动、启动、停止、联动、报警、信号反馈）","系统",0,450,0]
[212,null,"建筑灭火器","手提式灭火器","具",12,30,360]
[213,"门卫室","自动报警系统","火灾报警控制设备（安装、配线、供电、自检、记忆、显示、打印、故障报警、消音、复位、主备电源转换、火警优先）","套",1,1000,1000]
[214,null,null,"CRT（UPS供电、显示检查每一保护区平面图的设置）","套",1,800,800]
[215,null,null,"区域显示器或重复显示器（接线、报警、显示、消音、复位、二次报警功能）","套",0,300,0]
[216,null,null,"联动控制器（自动、手动控制功能、反馈信号、主备电自动切换、功能标志）","台",1,600,600]
[217,null,null,"联动设备点","区",0,50,0]
[218,null,null,"手动报警按钮（警铃、报警、反馈及联动）","只",0,20,0]
[219,null,null,"消防广播联动功能（背景音乐与消防广播的转切功能、各楼层广播音响）","区域",0,30,0]
[220,null,null,"电话插孔与电话机配备","只",1,15,15]
[221,null,null,"电梯手动、自动迫降","台",0,80,0]
[222,null,null,"布线、穿管（线、管、盒配置与规范，明敷管防火处理）","区域",1,150,150]
[223,null,null,"火灾探测器（安装、分布、离梁、墙风口距离、报警功能、编码、信号反馈","套",3,18,54]
[224,null,null,"备用发电机","套",0,300,0]
[225,null,null,"消防供电与末端配电箱切换","处",2,50,100]
[226,null,null,"应急灯、疏散指示标志（安装、配置、指向、掉电保持时间）","套",3,8,24]
[227,null,null,"漏电火灾报警监控主机","套",1,1200,1200]
[228,null,null,"漏电监控终端显示CRT","套",1,720,720]
[229,null,null,"漏电监控探测器","套",0,80,0]
[230,null,null,"漏电监控现场布线检查测试","套",0,140,0]
[231,null,"防火门、防火卷帘","防火卷帘（手动、自动控制、信号反馈、关闭速度及时间、安装质量）","㎡",0,19,0]
[232,null,null,"防火门","㎡",6,10,60]
[233,null,"水喷淋灭火系统","水喷淋系统（喷头、管网、水流指示、闸阀、湿式报警阀、放水、压力、泵房、水泵、控制箱、联动）","㎡",0,0.95,0]
[234,null,"消火栓系统","消火栓泵房与泵组（泵安装、规格、手动、自动、远动、启动、反馈、主备切换、配管、控制箱功能）","套",0,1200,0]
[235,null,null,"消火栓（安装尺寸、水枪、水带、卷盘配置、临高供水者，设直接启破玻按钮）","套",0,50,0]
[236,null,null,"消火栓按钮（报警、信号反馈、启泵）","套",0,20,0]
[237,null,null,"消火栓充实水柱及压力（最不利点压力和充实水柱、栓口静水压、出水压）","每支水枪",0,300,0]
[238,null,null,"水泵接合器（安装位置、标志、数量与水池、室外消火栓、门、窗洞、地面距离、试水开通功能）","套",0,100,0]
[239,null,"气体灭火系统","气体灭火系统","㎡",0,15,0]
[240,null,"防排烟系统","正压送风机与控制设备（专用消防供电、末级自动切换、火灾时自动启动、手动启动、信号反馈、安装容量）","套",0,200,0]
[241,null,null,"正压送风口与送风阀（梯间2-3层，前室每层设送风口、阀一个，手动、自动、开启、手动复位、信号反馈、安装位置）","套",0,50,0]
[242,null,null,"正压送风风速与余压测试（送风口风速≤7m/s、前室、合前室余压20-30Pa、楼梯间余压40-50 Pa）","处",0,50,0]
[243,null,null,"排烟风机与控制设备（配电与末端切换、安装位置、控制箱手动、自动启动、信号反馈）","套",0,200,0]
[244,null,null,"排烟口设置与功能（设置位置及其与安全出口、排烟区内最远点距离，平时关闭、设手动、自动开启装置，开启、复位、反馈正常、风速≤10m/s）","套",0,20,0]
[245,null,null,"排烟及通风空调防火阀设置与功能（设置部位、平时开启、手动、自动关闭、信号反馈、手动复位）","套",0,50,0]
[246,null,"建筑灭火器","手提式灭火器","具",4,30,120]
["合计",{"$nulls":6},{"$f":"SUM(H3:H248)","v":128205.5}]

{"sheet":"清单","index":3,"n_rows":5,"n_cols":9,"rows_kept":5,"merged":[[0,0,0,8],[1,0,2,0],[1,1,2,1],[1,2,2,3],[1,4,2,4],[1,5,2,5],[1,6,2,6],[1,7,2,7],[1,8,2,8],[3,2,3,3],[4,1,4,3]]}
["广州工控大湾区现代高端装备研发生产基地项目(三期)设备基础预压工程招标控制价"]
["序号","项目名称","项目特征描述",null,"计量单位","工程量","全费用综合单价(元)","综合合价(元)","备注"]
[]
[1,"设备基础\n预压","1.每个设备预压时间不小于1个月\n2.预压方式综合考虑\n3.包含进出场运输费、周转材租赁费、过程中吊装转运费，综合考虑因场地限制无法堆放转用材料等因素，包括按施工工艺、验收标准完成的相关内容，包括完成项目清单所需的一切相关工作。\n4.包括人工费、材料费、设备二次进出场费、场地内材料周转费、机械费、管理费、利润、措施费、预算包干费、总包配合费、税金以及项目所测算的风险金等全部费用。\n5.未尽事项详见招标文件、国家相关规范等",null,"t",16192,{"$f":"按进场部分工程量!C10","v":{"v":0,"d":"0.00"}},{"$f":"F4*G4","v":{"v":0,"d":"0.00"}}]
[null,"合     计",{"$nulls":5},{"$f":"H4","v":{"v":0,"d":"0.00"}}]

{"sheet":"按进场部分工程量","index":4,"n_rows":12,"n_cols":5,"rows_kept":12,"merged":[[0,0,0,4]]}
["清单工程量"]
[]
["序号","费用名称","单价","单位","备注"]
[1,"运输费",null,"元/t"]
[2,"进出场吊装费",null,"元/t"]
[3,"现场转运吊装费",null,"元/t"]
[4,"租赁费",null,"元/t"]
[5,"管理费、利润"]
[6,"税金"]
[null,"单价合计",null,"元/t"]
[null,"工程量",{"$f":"[1]Sheet1!F5","v":{"v":16192,"d":"16192.00"}},"t"]
[null,"合价",{"$f":"C10*C11","v":{"v":0,"d":"0.00"}},"元"]